fUST/lending_fUST_20250504
["ID","MTS","AMOUNT","RATE_DAILY","PERIOD"]
[359785091,1746347444046,-1000.0,0.00032469,30]
[359785092,1746347444055,-677.24411903,0.00032469,30]
[359785095,1746347444066,-58184.92026617,0.0003247,2]
[359785097,1746347444078,-40227.8669055,0.0003247,2]
[359785099,1746347444087,-527.2230556,0.00032473,5]
[359785101,1746347444097,-500.0,0.00032473,2]
[359785103,1746347444106,-500.0,0.00032473,5]
[359785104,1746347444116,-500.0,0.00032473,5]
[359785105,1746347444127,-5000.0,0.000325,20]
[359785106,1746347444136,-691.20061239,0.00032611,2]
[359785107,1746347444146,-160.0,0.00032635,3]
[359785109,1746347444155,-153.0,0.00032685,30]
[359785110,1746347444165,-153.0,0.00032685,30]
[359785111,1746347444176,-315.612341,0.00032685,30]
[359785112,1746347444186,-153.0,0.00032685,30]
[359785113,1746347444195,-153.0,0.00032685,30]
[359785114,1746347444205,-153.0,0.00032685,30]
[359785115,1746347444214,-153.0,0.00032685,30]
[359785116,1746347444223,-163.4214071,0.00032685,30]
[359785117,1746347444232,-306.0,0.00032685,30]
[359785118,1746347444242,-201.76483137,0.00032685,30]
[359785119,1746347444251,-500.0,0.00032685,30]
[359785120,1746347444261,-500.0,0.00032685,2]
[359785121,1746347444270,-164.22528875,0.00032685,30]
[359785122,1746347444279,-500.0,0.00032747,5]
[359785123,1746347444288,-163.50914329,0.0003277,2]
[359785124,1746347444298,-200.00935554,0.0003277,7]
[359785125,1746347444308,-160.0,0.000328,3]
[359785126,1746347444316,-187.0,0.000328,7]
[359785127,1746347444326,-1019.253651,0.000328,10]
[359785128,1746347444335,-364.31177466,0.00032863,2]
[359785129,1746347444344,-491.0952894,0.00032873,5]
[359785130,1746347444354,-501.32262758,0.00032873,5]
[359785131,1746347444363,-300.0,0.00032873,5]
[359785132,1746347444372,-397.56018741,0.00032873,5]
[359785133,1746347444381,-500.0,0.00032873,5]
[359785134,1746347444391,-500.0,0.00032873,5]
[359785135,1746347444399,-500.0,0.00032873,5]
[359785136,1746347444409,-500.0,0.00032873,5]
[359785137,1746347444418,-500.0,0.00032873,5]
[359785138,1746347444427,-500.0,0.00032873,5]
[359785139,1746347444437,-228.4687993,0.00032877,2]
[359785140,1746347444447,-1092.93532398,0.0003288,2]
[359785141,1746347444456,-364.31177466,0.0003289,2]
[359785142,1746347444465,-12829.41,0.000329,30]
[359785143,1746347444474,-42955.72,0.000329,30]
[359785144,1746347444484,-2469.94,0.000329,7]
[359785145,1746347444494,-2597.38,0.000329,30]
[359785146,1746347444505,-500.0,0.00032959,30]
[359785147,1746347444515,-500.0,0.00032959,2]
[359785148,1746347444524,-501.52429741,0.00032973,5]
[359785149,1746347444536,-500.0,0.00032973,5]
[359785150,1746347444545,-500.0,0.00032973,5]
[359785151,1746347444554,-500.0,0.00032973,5]
[359785152,1746347444564,-261.317186,0.00032973,14]
[359785153,1746347444573,-151.0,0.00032973,14]
[359785155,1746347444582,-162.94167,0.00032973,14]
[359785156,1746347444591,-162.94167,0.00032973,14]
[359785157,1746347444600,-164.851422,0.00032973,14]
[359785158,1746347444610,-164.851422,0.00032973,14]
[359785159,1746347444619,-151.0,0.00032973,14]
[359785160,1746347444628,-192.146174,0.00032973,14]
[359785161,1746347444636,-192.146174,0.00032973,14]
[359785162,1746347444646,-151.0,0.0003299,14]
[359785163,1746347444655,-151.0,0.0003299,14]
[359785164,1746347444664,-151.0,0.0003299,14]
[359785165,1746347444673,-232.193599,0.0003299,14]
[359785166,1746347444683,-151.0,0.0003299,14]
[359785167,1746347444692,-162.94167,0.0003299,14]
[359785168,1746347444701,-162.94167,0.0003299,14]
[359785169,1746347444711,-20816.62860533,0.0003299,2]
[359785170,1746347444719,-151.0,0.0003299,14]
[359785171,1746347444729,-192.146174,0.0003299,14]
[359785172,1746347444738,-192.146174,0.0003299,14]
[359785173,1746347444748,-340.0,0.00033,2]
[359785174,1746347444757,-202.44135279,0.00033,21]
[359785175,1746347444766,-1001.12842844,0.00033,7]
[359785176,1746347444776,-17019.0,0.00033,2]
[359785177,1746347444785,-151.0,0.00033,14]
[359785178,1746347444794,-151.0,0.00033,14]
[359785179,1746347444803,-500.0,0.00033021,5]
[359785180,1746347444813,-500.0,0.00033127,5]
[359785181,1746347444823,-570.06481311,0.00033127,5]
[359785182,1746347444831,-364.31177466,0.00033155,2]
[359785183,1746347444842,-1042.44616,0.00033165,2]
[359785184,1746347444851,-500.0,0.00033233,30]
[359785185,1746347444861,-500.0,0.00033233,2]
[359785186,1746347444871,-200.09757324,0.00033295,5]
[359785187,1746347444880,-691.40992095,0.00033329,2]
[359785188,1746347444890,-1700.0,0.00033413,60]
[359785189,1746347444899,-500.0,0.00033507,30]
[359785190,1746347444909,-500.0,0.00033507,2]
[359785191,1746347444919,-160.0,0.0003358,4]
[359785192,1746347444928,-724.5730674,0.00033681,30]
[359785193,1746347444938,-156.9716722,0.00033781,30]
[359785194,1746347444947,-153.0,0.00033781,30]
[359785195,1746347444956,-153.0,0.00033781,30]
[359785196,1746347444965,-153.0,0.00033781,30]
[359785197,1746347444975,-500.0,0.00033781,30]
[359785198,1746347444984,-500.0,0.00033781,2]
[359785199,1746347444993,-635.0,0.000339,2]
[359785200,1746347445002,-1700.0,0.00033961,60]
[359785201,1746347445010,-221.0,0.00033973,3]
[359785202,1746347445020,-151.0,0.00033973,14]
[359785204,1746347445030,-220.0,0.00034,120]
[359785205,1746347445039,-303.07899281,0.00034,2]
[359785206,1746347445048,-166.358329,0.00034,14]
[359785207,1746347445057,-151.0,0.00034,14]
[359785208,1746347445066,-151.0,0.00034,14]
[359785209,1746347445076,-397.877585,0.00034,2]
[359785210,1746347445085,-397.877585,0.00034,2]
[359785211,1746347445095,-500.0,0.00034,5]
[359785212,1746347445104,-500.08320944,0.00034,5]
[359785213,1746347445114,-270.41864684,0.00034,5]
[359785214,1746347445123,-500.2265515,0.00034,5]
[359785215,1746347445133,-500.0,0.00034,5]
[359785216,1746347445142,-501.95838036,0.00034,5]
[359785217,1746347445152,-500.0,0.00034,5]
[359785218,1746347445161,-500.0,0.00034,5]
[359785219,1746347445170,-500.52068319,0.00034,5]
[359785220,1746347445180,-500.0,0.00034,5]
[359785221,1746347445190,-501.59981447,0.00034,5]
[359785222,1746347445199,-500.0,0.00034,5]
[359785223,1746347445208,-151.87773643,0.00034,5]
[359785224,1746347445217,-500.37924529,0.00034,5]
[359785225,1746347445228,-500.0,0.00034,5]
[359785226,1746347445237,-501.97098283,0.00034,5]
[359785227,1746347445246,-236.47896105,0.00034,5]
[359785228,1746347445258,-480.4242239,0.00034,5]
[359785229,1746347445267,-500.0,0.00034055,30]
[359785230,1746347445276,-500.0,0.00034055,2]
[359785231,1746347445285,-500.0,0.000341,5]
[359785232,1746347445294,-2597.38,0.000342,30]
[359785233,1746347445303,-160.0,0.000342,44]
[359785234,1746347445312,-179.905252,0.000342,14]
[359785235,1746347445321,-151.0,0.000342,14]
[359785236,1746347445330,-151.0,0.000342,14]
[359785237,1746347445340,-151.0,0.000342,14]
[359785238,1746347445350,-500.86790231,0.00034217,5]
[359785239,1746347445359,-500.0,0.00034217,5]
[359785240,1746347445368,-500.86139467,0.00034217,5]
[359785241,1746347445377,-500.0,0.00034217,5]
[359785242,1746347445386,-500.0,0.00034217,5]
[359785243,1746347445396,-364.31177466,0.00034234,2]
[359785244,1746347445404,-164.851422,0.00034244,14]
[359785245,1746347445414,-164.851422,0.00034244,14]
[359785246,1746347445423,-151.0,0.00034244,14]
[359785247,1746347445432,-151.0,0.00034244,14]
[359785248,1746347445442,-5000.0,0.00034253,2]
[359785249,1746347445450,-560.0,0.00034274,2]
[359785250,1746347445459,-691.40992095,0.00034309,2]
[359785251,1746347445469,-500.0,0.00034329,30]
[359785252,1746347445479,-500.0,0.00034329,2]
[359785253,1746347445488,-151.0,0.000344,13]
[359785254,1746347445497,-364.31177466,0.0003449,2]
[359785255,1746347445506,-1700.0,0.00034509,60]
[359785256,1746347445516,-600.0,0.00034516,5]
[359785257,1746347445525,-160.0,0.00034525,5]
[359785258,1746347445534,-545.0,0.00034557,2]
[359785259,1746347445543,-500.0,0.00034603,30]
[359785260,1746347445552,-500.0,0.00034603,2]
[359785261,1746347445562,-151.0,0.000347,14]
[359785262,1746347445571,-1333.0,0.00034849,120]
[359785263,1746347445580,-500.0,0.00034877,30]
[359785264,1746347445590,-500.0,0.00034877,2]
[359785265,1746347445599,-160.0,0.00034885,2]
[359785266,1746347445608,-3053.17310768,0.00035,30]
[359785267,1746347445617,-210.53654745,0.00035,30]
[359785268,1746347445626,-2398.05847767,0.00035,10]
[359785269,1746347445635,-514.16,0.00035,5]
[359785270,1746347445646,-514.16,0.00035,5]
[359785271,1746347445655,-151.0,0.00035,14]
[359785272,1746347445664,-1000.0,0.00035,120]
[359785273,1746347445673,-151.0,0.00035047,14]
[359785274,1746347445685,-151.0,0.00035047,14]
[359785275,1746347445694,-162.94167,0.00035047,14]
[359785276,1746347445703,-162.94167,0.00035047,14]
[359785277,1746347445712,-151.0,0.00035047,14]
[359785278,1746347445722,-192.146174,0.00035047,14]
[359785279,1746347445731,-192.146174,0.00035047,14]
[359785280,1746347445741,-1700.0,0.00035057,60]
[359785281,1746347445752,-709.585,0.00035091,2]
[359785282,1746347445762,-2243.0,0.00035091,2]
[359785283,1746347445771,-403.0,0.00035091,2]
[359785284,1746347445781,-2469.94,0.000351,7]
[359785285,1746347445791,-151.0,0.000351,15]
[359785286,1746347445800,-210.7438532,0.00035151,30]
[359785287,1746347445809,-305.19166331,0.00035151,2]
[359785288,1746347445819,-160.0,0.000352,47]
[359785289,1746347445828,-691.40992095,0.00035288,2]
[359785291,1746347445838,-151.0,0.000354,14]
[359785292,1746347445847,-151.0,0.000354,11]
[359785293,1746347445856,-160.0,0.0003547,6]
[359785294,1746347445865,-2597.38,0.000355,30]
[359785295,1746347445875,-151.0,0.000355,14]
[359785296,1746347445885,-151.0,0.000355,14]
[359785297,1746347445895,-151.0,0.000355,11]
[359785298,1746347445905,-1700.0,0.00035605,60]
[359785300,1746347445914,-2550.18242262,0.00035606,3]
[359785301,1746347445924,-180.34,0.00035615,2]
[359785302,1746347445934,-153.694795,0.00035616,14]
[359785303,1746347445943,-151.0,0.00035616,14]
[359785304,1746347445953,-151.0,0.00035616,14]
[359785305,1746347445963,-263.692346,0.00035616,14]
[359785307,1746347445972,-185.36797097,0.00035616,60]
[359785308,1746347445982,-151.0,0.00035616,14]
[359785309,1746347445991,-275.282959,0.00035616,14]
[359785310,1746347446001,-151.0,0.00035616,14]
[359785311,1746347446010,-151.0,0.00035616,14]
[359785312,1746347446021,-151.0,0.00035616,14]
[359785314,1746347446030,-151.0,0.00035616,14]
[359785316,1746347446040,-151.0,0.00035616,14]
[359785317,1746347446050,-151.0,0.00035616,14]
[359785319,1746347446060,-151.0,0.00035616,14]
[359785321,1746347446070,-151.0,0.00035616,14]
[359785323,1746347446079,-151.0,0.00035616,14]
[359785325,1746347446089,-151.0,0.00035616,14]
[359785327,1746347446099,-151.0,0.00035616,14]
[359785328,1746347446108,-151.0,0.00035616,14]
[359785329,1746347446118,-151.0,0.00035616,14]
[359785330,1746347446127,-151.0,0.00035616,14]
[359785331,1746347446137,-151.0,0.00035616,14]
[359785332,1746347446149,-151.0,0.00035616,14]
[359785333,1746347446159,-151.0,0.00035616,14]
[359785335,1746347446168,-151.0,0.00035616,14]
[359785336,1746347446181,-151.0,0.00035616,14]
[359785338,1746347446191,-151.0,0.00035616,14]
[359785339,1746347446201,-397.877585,0.00035616,2]
[359785340,1746347446210,-397.877585,0.00035616,2]
[359785341,1746347446220,-397.877585,0.00035616,2]
[359785342,1746347446230,-397.877585,0.00035616,2]
[359785343,1746347446239,-397.877585,0.00035616,2]
[359785345,1746347446249,-397.877585,0.00035616,2]
[359785347,1746347446259,-397.877585,0.00035616,2]
[359785349,1746347446268,-397.877585,0.00035616,2]
[359785351,1746347446278,-397.877585,0.00035616,2]
[359785353,1746347446287,-397.877585,0.00035616,2]
[359785355,1746347446297,-400.0,0.00035616,15]
[359785357,1746347446307,-400.0,0.00035616,15]
[359785359,1746347446316,-400.0,0.00035616,15]
[359785361,1746347446325,-400.0,0.00035616,15]
[359785363,1746347446335,-400.0,0.00035616,15]
[359785365,1746347446344,-412.095155,0.00035616,15]
[359785367,1746347446354,-151.0,0.00035616,14]
[359785369,1746347446364,-151.0,0.00035616,14]
[359785371,1746347446373,-151.0,0.00035616,14]
[359785373,1746347446383,-151.0,0.00035616,14]
[359785375,1746347446393,-151.0,0.00035616,14]
[359785376,1746347446402,-400.0,0.00035616,15]
[359785377,1746347446412,-400.0,0.00035616,15]
[359785379,1746347446422,-400.0,0.00035616,15]
[359785380,1746347446432,-400.9127841,0.00035616,15]
[359785381,1746347446442,-400.0,0.00035616,15]
[359785383,1746347446452,-400.0,0.00035616,15]
[359785385,1746347446462,-400.0,0.00035616,15]
[359785387,1746347446471,-400.0,0.00035616,15]
[359785389,1746347446481,-400.0,0.00035616,15]
[359785391,1746347446492,-151.0,0.00035616,14]
[359785393,1746347446501,-400.0,0.00035616,15]
[359785395,1746347446510,-151.0,0.00035616,14]
[359785397,1746347446519,-400.0,0.00035616,15]
[359785399,1746347446529,-151.0,0.00035616,14]
[359785401,1746347446538,-400.0,0.00035616,15]
[359785403,1746347446547,-400.0,0.00035616,15]
[359785405,1746347446557,-400.0,0.00035616,15]
[359785407,1746347446566,-502.24804675,0.00035616,15]
[359785409,1746347446576,-151.0,0.00035616,14]
[359785411,1746347446586,-151.0,0.00035616,14]
[359785413,1746347446595,-151.0,0.00035616,30]
[359785415,1746347446604,-162.94167,0.00035616,14]
[359785417,1746347446614,-162.94167,0.00035616,14]
[359785428,1746347446718,-162.94167,0.00035616,14]
[359785429,1746347446727,-162.94167,0.00035616,14]
[359785431,1746347446737,-162.94167,0.00035616,14]
[359785432,1746347446748,-162.94167,0.00035616,14]
[359785433,1746347446760,-162.94167,0.00035616,14]
[359785434,1746347446770,-162.94167,0.00035616,14]
[359785435,1746347446779,-162.94167,0.00035616,14]
[359785437,1746347446788,-162.94167,0.00035616,14]
[359785438,1746347446798,-400.0,0.00035616,15]
[359785439,1746347446807,-400.0,0.00035616,15]
[359785440,1746347446817,-400.0,0.00035616,15]
[359785441,1746347446826,-400.0,0.00035616,15]
[359785442,1746347446836,-400.0,0.00035616,15]
[359785443,1746347446846,-400.0,0.00035616,15]
[359785444,1746347446855,-400.0,0.00035616,15]
[359785445,1746347446864,-397.368524,0.00035616,15]
[359785446,1746347446874,-164.851422,0.00035616,14]
[359785447,1746347446883,-164.851422,0.00035616,14]
[359785448,1746347446893,-164.851422,0.00035616,14]
[359785449,1746347446903,-164.851422,0.00035616,14]
[359785450,1746347446912,-164.851422,0.00035616,14]
[359785451,1746347446921,-164.851422,0.00035616,14]
[359785452,1746347446931,-164.851422,0.00035616,14]
[359785453,1746347446940,-164.851422,0.00035616,14]
[359785454,1746347446949,-151.0,0.00035616,14]
[359785455,1746347446959,-156.28857,0.00035616,14]
[359785456,1746347446968,-151.0,0.00035616,14]
[359785457,1746347446977,-337.61114804,0.00035616,15]
[359785458,1746347446987,-12101.79,0.00035616,15]
[359785459,1746347446996,-12101.79,0.00035616,15]
[359785460,1746347447005,-12101.79,0.00035616,15]
[359785461,1746347447015,-12101.79,0.00035616,15]
[359785462,1746347447024,-12101.79,0.00035616,15]
[359785463,1746347447033,-12101.79,0.00035616,15]
[359785464,1746347447043,-12101.79,0.00035616,15]
[359785465,1746347447052,-12101.79,0.00035616,15]
[359785466,1746347447063,-12101.79,0.00035616,15]
[359785467,1746347447072,-12101.79,0.00035616,15]
[359785468,1746347447081,-12101.79,0.00035616,15]
[359785469,1746347447091,-12101.79,0.00035616,15]
[359785470,1746347447101,-12101.79,0.00035616,15]
[359785471,1746347447110,-12101.79,0.00035616,15]
[359785472,1746347447119,-12101.79,0.00035616,15]
[359785473,1746347447129,-12101.79,0.00035616,15]
[359785474,1746347447138,-12101.79,0.00035616,15]
[359785475,1746347447150,-12101.79,0.00035616,15]
[359785476,1746347447159,-12101.79,0.00035616,15]
[359785477,1746347447169,-12101.79,0.00035616,15]
[359785478,1746347447179,-12101.79,0.00035616,15]
[359785479,1746347447191,-12101.79,0.00035616,15]
[359785480,1746347447200,-12101.79,0.00035616,15]
[359785481,1746347447209,-12101.88957313,0.00035616,15]
[359785482,1746347447219,-400.0,0.00035616,15]
[359785483,1746347447231,-442.04369164,0.00035616,15]
[359785484,1746347447240,-400.0,0.00035616,15]
[359785485,1746347447249,-400.0,0.00035616,15]
[359785486,1746347447258,-449.49719319,0.00035616,15]
[359785487,1746347447268,-192.146174,0.00035616,14]
[359785488,1746347447278,-192.146174,0.00035616,14]
[359785489,1746347447288,-192.146174,0.00035616,14]
[359785490,1746347447297,-192.146174,0.00035616,14]
[359785491,1746347447306,-192.146174,0.00035616,14]
[359785492,1746347447315,-192.146174,0.00035616,14]
[359785493,1746347447325,-192.146174,0.00035616,14]
[359785494,1746347447334,-192.146174,0.00035616,14]
[359785495,1746347447343,-192.146174,0.00035616,14]
[359785496,1746347447352,-192.146174,0.00035616,14]
[359785497,1746347447362,-151.0,0.00035616,14]
[359785498,1746347447372,-151.0,0.00035616,14]
[359785499,1746347447381,-151.0,0.00035616,14]
[359785500,1746347447390,-151.0,0.00035616,14]
[359785501,1746347447400,-185.371852,0.00035616,14]
[359785502,1746347447409,-595.1,0.00035616,15]
[359785503,1746347447419,-595.1,0.00035616,15]
[359785504,1746347447429,-595.1,0.00035616,15]
[359785505,1746347447438,-595.1,0.00035616,15]
[359785506,1746347447447,-595.1,0.00035616,15]
[359785507,1746347447457,-595.1,0.00035616,15]
[359785508,1746347447467,-595.1,0.00035616,15]
[359785509,1746347447476,-595.1,0.00035616,15]
[359785510,1746347447486,-595.1,0.00035616,15]
[359785511,1746347447495,-595.1,0.00035616,15]
[359785512,1746347447505,-595.1,0.00035616,15]
[359785513,1746347447514,-595.1,0.00035616,15]
[359785514,1746347447523,-595.1,0.00035616,15]
[359785515,1746347447533,-595.1,0.00035616,15]
[359785516,1746347447542,-595.1,0.00035616,15]
[359785517,1746347447551,-595.1,0.00035616,15]
[359785518,1746347447561,-595.1,0.00035616,15]
[359785519,1746347447570,-595.1,0.00035616,15]
[359785520,1746347447579,-595.1,0.00035616,15]
[359785521,1746347447589,-595.1,0.00035616,15]
[359785522,1746347447598,-595.1,0.00035616,15]
[359785523,1746347447608,-595.1,0.00035616,15]
[359785524,1746347447618,-595.1,0.00035616,15]
[359785525,1746347447628,-595.21032375,0.00035616,15]
[359785526,1746347447638,-479.0,0.00035616,15]
[359785527,1746347447648,-479.0,0.00035616,15]
[359785528,1746347447657,-479.0,0.00035616,15]
[359785529,1746347447667,-479.0,0.00035616,15]
[359785530,1746347447676,-479.0,0.00035616,15]
[359785531,1746347447686,-479.0,0.00035616,15]
[359785532,1746347447695,-479.0,0.00035616,15]
[359785533,1746347447705,-479.0,0.00035616,15]
[359785534,1746347447715,-479.0,0.00035616,15]
[359785535,1746347447724,-479.0,0.00035616,15]
[359785536,1746347447733,-479.0,0.00035616,15]
[359785537,1746347447742,-479.0,0.00035616,15]
[359785538,1746347447751,-479.0,0.00035616,15]
[359785539,1746347447761,-479.0,0.00035616,15]
[359785540,1746347447770,-479.0,0.00035616,15]
[359785541,1746347447779,-479.0,0.00035616,15]
[359785542,1746347447788,-400.0,0.00035616,15]
[359785543,1746347447797,-479.0,0.00035616,15]
[359785544,1746347447806,-400.0,0.00035616,15]
[359785545,1746347447816,-479.0,0.00035616,15]
[359785546,1746347447825,-400.0,0.00035616,15]
[359785547,1746347447834,-479.0,0.00035616,15]
[359785548,1746347447844,-400.0,0.00035616,15]
[359785549,1746347447853,-479.0,0.00035616,15]
[359785550,1746347447862,-400.0,0.00035616,15]
[359785551,1746347447871,-479.0,0.00035616,15]
[359785552,1746347447880,-400.0,0.00035616,15]
[359785553,1746347447889,-479.0,0.00035616,15]
[359785554,1746347447900,-400.0,0.00035616,15]
[359785555,1746347447909,-479.0,0.00035616,15]
[359785556,1746347447919,-400.0,0.00035616,15]
[359785557,1746347447928,-479.03366896,0.00035616,15]
[359785558,1746347447937,-400.0,0.00035616,15]
[359785559,1746347447947,-400.0,0.00035616,2]
[359785560,1746347447956,-400.0,0.00035616,15]
[359785561,1746347447965,-400.0,0.00035616,2]
[359785562,1746347447975,-400.0,0.00035616,15]
[359785563,1746347447984,-400.0,0.00035616,2]
[359785564,1746347447994,-356.86,0.00035616,15]
[359785565,1746347448003,-400.0,0.00035616,2]
[359785566,1746347448013,-406.86,0.00035616,2]
[359785567,1746347448022,-208.34926857,0.00035616,7]
[359785568,1746347448031,-150.177,0.0003563,2]
[359785569,1746347448040,-194.922,0.0003563,2]
[359785570,1746347448049,-151.376,0.0003563,2]
[359785571,1746347448059,-150.0,0.0003563,2]
[359785572,1746347448068,-150.164,0.0003563,2]
[359785573,1746347448078,-500.0,0.00035657,5]
[359785574,1746347448087,-164.04701372,0.00035657,5]
[359785575,1746347448097,-300.09959214,0.00035662,5]
[359785576,1746347448107,-500.0,0.00035662,5]
[359785577,1746347448117,-500.0,0.00035662,5]
[359785578,1746347448127,-500.0,0.00035662,5]
[359785579,1746347448137,-501.03088192,0.00035673,5]
[359785580,1746347448147,-500.0,0.00035673,5]
[359785581,1746347448156,-500.0,0.00035673,5]
[359785582,1746347448166,-500.0,0.00035673,5]
[359785583,1746347448175,-42955.72,0.000357,30]
[359785584,1746347448189,-151.0,0.000357,14]
[359785585,1746347448198,-151.0,0.000357,14]
[359785586,1746347448209,-151.0,0.000357,14]
[359785587,1746347448219,-530.97,0.000357,2]
[359785588,1746347448228,-151.0,0.000357,14]
[359785589,1746347448238,-151.0,0.000357,14]
[359785590,1746347448248,-151.0,0.000357,14]
[359785591,1746347448258,-151.0,0.000357,14]
[359785592,1746347448268,-397.877585,0.000357,2]
[359785593,1746347448278,-397.877585,0.000357,2]
[359785594,1746347448287,-164.851422,0.000357,14]
[359785595,1746347448296,-164.851422,0.000357,14]
[359785596,1746347448306,-160.0,0.00035782,2]
[359785597,1746347448315,-182.19332975,0.00035782,2]
[359785598,1746347448325,-305.0,0.0003584,42]
[359785599,1746347448334,-208.35737189,0.0003589,30]
[359785600,1746347448344,-309.70141715,0.00036,30]
[359785601,1746347448354,-482.38340588,0.00036,30]
[359785602,1746347448364,-200.0,0.00036,120]
[359785603,1746347448373,-15911.84289574,0.00036,30]
[359785604,1746347448383,-182.19332975,0.00036,7]
[359785605,1746347448393,-151.0,0.00036,16]
[359785606,1746347448403,-151.0,0.00036,14]
[359785607,1746347448413,-155.18905,0.00036,14]
[359785608,1746347448422,-841.6056368,0.00036,7]
[359785609,1746347448432,-162.94167,0.00036,14]
[359785610,1746347448442,-162.94167,0.00036,14]
[359785611,1746347448451,-192.146174,0.00036,14]
[359785612,1746347448461,-192.146174,0.00036,14]
[359785613,1746347448470,-1700.0,0.00036153,60]
[359785614,1746347448479,-346.21355338,0.0003616,5]
[359785615,1746347448487,-160.0,0.000362,50]
[359785616,1746347448497,-717.37066886,0.000362,120]
[359785617,1746347448507,-717.37066882,0.000362,120]
[359785618,1746347448516,-717.37066882,0.000362,120]
[359785619,1746347448525,-202.35763832,0.0003621,2]
[359785620,1746347448534,-263.20964849,0.0003624,2]
[359785621,1746347448543,-691.40992095,0.00036267,2]
[359785622,1746347448552,-160.0,0.00036348,2]
[359785623,1746347448562,-12829.41,0.000364,30]
[359785624,1746347448572,-2469.94,0.000364,7]
[359785625,1746347448581,-160.0,0.00036415,7]
[359785626,1746347448590,-5000.0,0.000365,30]
[359785627,1746347448600,-151.0,0.000365,17]
[359785628,1746347448609,-693.55,0.00036558,48]
[359785629,1746347448618,-2597.38,0.000367,30]
[359785630,1746347448628,-693.55,0.00036708,50]
[359785631,1746347448638,-162.84382066,0.00036822,2]
[359785632,1746347448648,-693.55,0.00036858,66]
[359785633,1746347448657,-783.0,0.00036869,2]
[359785634,1746347448667,-180.34,0.00036899,2]
[359785635,1746347448677,-74271.56100753,0.000369,30]
[359785636,1746347448694,-8180.5425418,0.000369,30]
[359785637,1746347448706,-691.15,0.000369,30]
[359785638,1746347448717,-6386.04449922,0.000369,30]
[359785639,1746347448728,-872.23335984,0.000369,30]
[359785640,1746347448759,-301.91,0.0003246,3]
[359785641,1746347448769,-151.0,0.000329,14]
[359785642,1746347448778,-603.82,0.0003383,3]
[359785643,1746347448787,-151.0,0.00034,14]
[359785644,1746347448797,-267.801164,0.00035616,14]
[359785645,1746347448807,-4618.74567394,0.000369,30]
[359785646,1746347448818,-324.65567513,0.000369,30]
[359785647,1746347448830,-1745.28953661,0.000369,30]
[359785648,1746347448842,-19096.58305143,0.000369,30]
[359785649,1746347448856,-500.0,0.000369,30]
[359785650,1746347448867,-331.266836,0.000369,30]
[359785651,1746347448879,-180733.1875804,0.000369,30]
[359785652,1746347448889,-151.0,0.000369,14]
[359785653,1746347448899,-151.0,0.000369,14]
[359785654,1746347448909,-151.0,0.000369,14]
[359785655,1746347448919,-183.652419,0.000369,14]
[359785656,1746347448928,-151.0,0.000369,14]
[359785657,1746347448938,-151.0,0.000369,14]
[359785658,1746347448947,-280.849396,0.000369,14]